fUST/lending_fUST_20240415
["ID","MTS","AMOUNT","RATE_DAILY","PERIOD"]
[322634481,1713143441728,-500.0,0.0003863,7]
[322634482,1713143441739,-500.0,0.0003863,7]
[322634483,1713143441748,-725.42,0.0003863,7]
[322634484,1713143441758,-500.0,0.0003863,7]
[322634485,1713143441767,-500.0,0.0003863,7]
[322634486,1713143441777,-500.0,0.0003863,7]
[322634487,1713143441786,-500.0,0.0003863,7]
[322634488,1713143441795,-523.25980538,0.0003863,7]
[322634489,1713143441804,-621.94,0.0003863,7]
[322634490,1713143441813,-500.0,0.0003863,7]
[322634491,1713143441823,-500.0,0.0003863,7]
[322634492,1713143441832,-500.0,0.0003863,7]
[322634493,1713143441841,-500.0,0.0003863,7]
[322634494,1713143441851,-500.0,0.0003863,7]
[322634495,1713143441860,-500.0,0.0003863,7]
[322634496,1713143441869,-500.0,0.0003863,7]
[322634497,1713143441878,-500.0,0.0003863,7]
[322634498,1713143441887,-1541.9,0.0003863,7]
[322634499,1713143441896,-500.0,0.0003863,7]
[322634500,1713143441906,-500.0,0.0003863,7]
[322634501,1713143441915,-500.0,0.0003863,7]
[322634502,1713143441924,-500.0,0.0003863,7]
[322634503,1713143441933,-500.0,0.0003863,7]
[322634504,1713143441943,-500.0,0.0003863,7]
[322634505,1713143441951,-1635.1,0.0003863,7]
[322634506,1713143441960,-601.8,0.0003863,7]
[322634507,1713143441969,-6301.64,0.0003863,7]
[322634508,1713143441978,-500.0,0.0003863,7]
[322634509,1713143441988,-1100.83,0.0003863,7]
[322634510,1713143441997,-500.0,0.0003863,7]
[322634511,1713143442005,-500.0,0.0003863,7]
[322634512,1713143442014,-1495.71,0.0003863,7]
[322634513,1713143442023,-500.0,0.0003863,7]
[322634514,1713143442033,-858.28,0.0003863,7]
[322634515,1713143442041,-2131.94,0.0003863,7]
[322634516,1713143442051,-16241.19,0.0003863,7]
[322634517,1713143442059,-500.0,0.0003863,7]
[322634518,1713143442068,-3633.99,0.0003863,7]
[322634519,1713143442077,-500.0,0.0003863,7]
[322634520,1713143442086,-500.0,0.0003863,7]
[322634522,1713143442095,-514.94946323,0.0003863,7]
[322634523,1713143442104,-500.0,0.0003863,7]
[322634525,1713143442113,-500.0,0.0003863,7]
[322634526,1713143442122,-500.0,0.0003863,7]
[322634527,1713143442130,-500.0,0.0003863,7]
[322634528,1713143442139,-537.97,0.0003863,7]
[322634529,1713143442148,-2146.14,0.0003863,7]
[322634530,1713143442157,-4700.09,0.0003863,7]
[322634531,1713143442167,-500.0,0.0003863,7]
[322634532,1713143442176,-570.11,0.0003863,7]
[322634533,1713143442186,-500.0,0.0003863,7]
[322634534,1713143442195,-569.17,0.0003863,7]
[322634535,1713143442204,-500.0,0.0003863,7]
[322634536,1713143442213,-2843.17,0.0003863,7]
[322634537,1713143442222,-2491.41,0.0003863,7]
[322634538,1713143442231,-500.0,0.0003863,7]
[322634539,1713143442241,-339.27618828,0.0003863,7]
[322634540,1713143442251,-712.22,0.0003863,7]
[322634541,1713143442259,-500.0,0.0003863,7]
[322634542,1713143442268,-655.24,0.0003863,7]
[322634543,1713143442278,-500.0,0.0003863,7]
[322634544,1713143442287,-930.76,0.0003863,7]
[322634545,1713143442296,-1770.65,0.0003863,7]
[322634546,1713143442306,-508.55,0.0003863,7]
[322634547,1713143442315,-683.95,0.0003863,7]
[322634548,1713143442324,-500.0,0.0003863,7]
[322634549,1713143442333,-500.0,0.0003863,7]
[322634550,1713143442343,-1031.91,0.0003863,7]
[322634552,1713143442352,-641.78070259,0.0003863,7]
[322634553,1713143442361,-500.0,0.0003863,7]
[322634554,1713143442370,-536.02,0.0003863,7]
[322634555,1713143442379,-500.0,0.0003863,7]
[322634556,1713143442389,-500.0,0.0003863,7]
[322634557,1713143442398,-2265.88,0.0003863,7]
[322634558,1713143442407,-44647.43,0.0003863,7]
[322634559,1713143442416,-2201.61,0.0003863,7]
[322634560,1713143442426,-500.0,0.0003863,7]
[322634561,1713143442435,-500.0,0.0003863,7]
[322634562,1713143442448,-2078.26,0.0003863,7]
[322634563,1713143442457,-500.0,0.0003863,7]
[322634564,1713143442467,-500.0,0.0003863,7]
[322634565,1713143442477,-500.0,0.0003863,7]
[322634566,1713143442486,-500.0,0.0003863,7]
[322634567,1713143442497,-4371.05,0.0003863,7]
[322634568,1713143442506,-500.0,0.0003863,7]
[322634569,1713143442517,-500.0,0.0003863,7]
[322634570,1713143442527,-500.0,0.0003863,7]
[322634571,1713143442537,-500.0,0.0003863,7]
[322634572,1713143442546,-236.94,0.0003863,7]
[322634573,1713143442555,-800.47,0.0003863,7]
[322634574,1713143442564,-665.68,0.0003863,7]
[322634575,1713143442573,-9287.16,0.0003863,7]
[322634576,1713143442583,-488.85023791,0.0003863,7]
[322634577,1713143442592,-918.31,0.0003863,7]
[322634578,1713143442602,-2559.88,0.0003863,7]
[322634579,1713143442611,-500.0,0.0003863,7]
[322634580,1713143442619,-500.0,0.0003863,7]
[322634581,1713143442628,-500.0,0.0003863,7]
[322634582,1713143442637,-2124.92,0.0003863,7]
[322634583,1713143442646,-500.0,0.0003863,7]
[322634584,1713143442656,-7127.63,0.0003863,7]
[322634585,1713143442665,-500.0,0.0003863,7]
[322634586,1713143442673,-1307.14,0.0003863,7]
[322634587,1713143442683,-627.47,0.0003863,7]
[322634588,1713143442691,-2213.19,0.0003863,7]
[322634589,1713143442701,-4423.39,0.0003863,7]
[322634590,1713143442710,-2540.62,0.0003863,7]
[322634591,1713143442720,-500.0,0.0003863,7]
[322634592,1713143442729,-560.65,0.0003863,7]
[322634593,1713143442739,-500.0,0.0003863,7]
[322634594,1713143442748,-1498.05,0.0003863,7]
[322634595,1713143442756,-500.0,0.0003863,7]
[322634596,1713143442767,-500.0,0.0003863,7]
[322634597,1713143442778,-500.0,0.0003863,7]
[322634598,1713143442787,-593.85,0.0003863,7]
[322634599,1713143442796,-500.0,0.0003863,7]
[322634600,1713143442805,-170.92425483,0.000388,2]
[322634601,1713143442814,-419.0,0.000388,2]
[322634602,1713143442823,-2704.74270228,0.00038803,2]
[322634603,1713143442832,-350.13262947,0.000389,2]
[322634604,1713143442842,-3000.0,0.000389,20]
[322634605,1713143442851,-18954.38,0.00038903,7]
[322634607,1713143442861,-165.28,0.00038903,2]
[322634609,1713143442871,-160.0,0.00038903,30]
[322634611,1713143442880,-500.0,0.00038903,7]
[322634613,1713143442889,-500.0,0.00038903,10]
[322634615,1713143442898,-500.0,0.00038903,10]
[322634617,1713143442907,-500.0,0.00038904,7]
[322634618,1713143442916,-504.05,0.00038904,7]
[322634620,1713143442925,-500.0,0.00038904,7]
[322634622,1713143442934,-500.0,0.00038904,7]
[322634624,1713143442942,-500.0,0.00038904,7]
[322634626,1713143442951,-500.0,0.00038904,7]
[322634628,1713143442960,-507.81366434,0.00038904,7]
[322634630,1713143442969,-500.0,0.00038904,7]
[322634632,1713143442979,-500.0,0.00038904,7]
[322634634,1713143442988,-500.0,0.00038904,7]
[322634636,1713143442997,-500.0,0.00038904,7]
[322634638,1713143443006,-500.0,0.00038904,7]
[322634640,1713143443015,-500.0,0.00038904,7]
[322634642,1713143443024,-656.96,0.00038904,7]
[322634645,1713143443033,-500.0,0.00038904,7]
[322634648,1713143443042,-500.0,0.00038904,7]
[322634676,1713143443156,-500.0,0.00038904,7]
[322634678,1713143443166,-500.0,0.00038904,7]
[322634680,1713143443175,-500.0,0.00038904,7]
[322634683,1713143443185,-500.0,0.00038904,7]
[322634685,1713143443194,-500.0,0.00038904,7]
[322634687,1713143443203,-500.0,0.00038904,7]
[322634689,1713143443212,-500.0,0.00038904,7]
[322634691,1713143443222,-500.0,0.00038904,7]
[322634693,1713143443231,-500.0,0.00038904,7]
[322634695,1713143443244,-500.0,0.00038904,7]
[322634697,1713143443253,-500.0,0.00038904,7]
[322634699,1713143443263,-500.0,0.00038904,7]
[322634701,1713143443273,-725.42,0.00038904,7]
[322634703,1713143443282,-500.0,0.00038904,7]
[322634705,1713143443291,-500.0,0.00038904,7]
[322634707,1713143443300,-500.0,0.00038904,7]
[322634709,1713143443309,-500.0,0.00038904,7]
[322634710,1713143443318,-621.94,0.00038904,7]
[322634712,1713143443327,-500.0,0.00038904,7]
[322634713,1713143443336,-500.0,0.00038904,7]
[322634714,1713143443345,-500.0,0.00038904,7]
[322634715,1713143443354,-500.0,0.00038904,7]
[322634716,1713143443363,-500.0,0.00038904,7]
[322634717,1713143443372,-1541.9,0.00038904,7]
[322634718,1713143443381,-500.0,0.00038904,7]
[322634719,1713143443390,-500.0,0.00038904,7]
[322634720,1713143443399,-500.0,0.00038904,7]
[322634721,1713143443408,-368.83977831,0.00038904,7]
[322634722,1713143443417,-500.0,0.00038904,7]
[322634723,1713143443426,-500.0,0.00038904,7]
[322634724,1713143443436,-1635.1,0.00038904,7]
[322634725,1713143443447,-601.8,0.00038904,7]
[322634726,1713143443456,-6301.64,0.00038904,7]
[322634727,1713143443465,-500.0,0.00038904,7]
[322634728,1713143443475,-1100.83,0.00038904,7]
[322634729,1713143443484,-500.0,0.00038904,7]
[322634731,1713143443495,-500.0,0.00038904,7]
[322634732,1713143443505,-1495.71,0.00038904,7]
[322634733,1713143443515,-500.0,0.00038904,7]
[322634734,1713143443525,-858.28,0.00038904,7]
[322634735,1713143443534,-2131.94,0.00038904,7]
[322634736,1713143443543,-16241.19,0.00038904,7]
[322634737,1713143443552,-3633.99,0.00038904,7]
[322634738,1713143443562,-500.0,0.00038904,7]
[322634739,1713143443571,-500.0,0.00038904,7]
[322634740,1713143443581,-500.0,0.00038904,7]
[322634741,1713143443590,-500.0,0.00038904,7]
[322634742,1713143443599,-500.0,0.00038904,7]
[322634743,1713143443608,-537.97,0.00038904,7]
[322634744,1713143443617,-2146.14,0.00038904,7]
[322634745,1713143443627,-4700.09,0.00038904,7]
[322634746,1713143443636,-500.0,0.00038904,7]
[322634747,1713143443645,-570.11,0.00038904,7]
[322634748,1713143443654,-452.15799492,0.00038904,7]
[322634749,1713143443663,-569.17,0.00038904,7]
[322634750,1713143443673,-2843.17,0.00038904,7]
[322634751,1713143443683,-500.0,0.00038904,7]
[322634752,1713143443692,-2491.41,0.00038904,7]
[322634753,1713143443701,-500.0,0.00038904,7]
[322634754,1713143443710,-500.0,0.00038904,7]
[322634755,1713143443719,-712.22,0.00038904,7]
[322634756,1713143443728,-655.24,0.00038904,7]
[322634757,1713143443740,-500.0,0.00038904,7]
[322634758,1713143443749,-930.76,0.00038904,7]
[322634759,1713143443758,-1770.65,0.00038904,7]
[322634760,1713143443766,-508.55,0.00038904,7]
[322634761,1713143443777,-683.95,0.00038904,7]
[322634762,1713143443786,-500.0,0.00038904,7]
[322634763,1713143443795,-500.0,0.00038904,7]
[322634764,1713143443804,-1031.91,0.00038904,7]
[322634765,1713143443813,-500.0,0.00038904,7]
[322634766,1713143443823,-536.02,0.00038904,7]
[322634767,1713143443832,-500.0,0.00038904,7]
[322634769,1713143443841,-500.0,0.00038904,7]
[322634770,1713143443850,-2265.88,0.00038904,7]
[322634771,1713143443859,-14035.86396248,0.00038904,7]
[322634772,1713143444071,-500.0,0.0003863,7]
[322634773,1713143444080,-30611.56603752,0.00038904,7]
[322634774,1713143444089,-2201.61,0.00038904,7]
[322634775,1713143444098,-500.0,0.00038904,7]
[322634776,1713143444107,-500.0,0.00038904,7]
[322634777,1713143444116,-2078.26,0.00038904,7]
[322634778,1713143444125,-500.0,0.00038904,7]
[322634779,1713143444134,-500.0,0.00038904,7]
[322634780,1713143444142,-534.54505286,0.00038904,7]
[322634781,1713143444151,-500.0,0.00038904,7]
[322634782,1713143444160,-4371.05,0.00038904,7]
[322634783,1713143444169,-500.0,0.00038904,7]
[322634784,1713143444178,-500.0,0.00038904,7]
[322634785,1713143444186,-583.08273626,0.00038904,7]
[322634786,1713143444196,-500.0,0.00038904,7]
[322634787,1713143444205,-800.47,0.00038904,7]
[322634788,1713143444214,-665.68,0.00038904,7]
[322634789,1713143444222,-9287.16,0.00038904,7]
[322634790,1713143444231,-918.31,0.00038904,7]
[322634791,1713143444243,-2559.88,0.00038904,7]
[322634792,1713143444252,-500.0,0.00038904,7]
[322634793,1713143444261,-500.0,0.00038904,7]
[322634794,1713143444270,-349.01511117,0.00038904,7]
[322634795,1713143444279,-2124.92,0.00038904,7]
[322634796,1713143444288,-500.0,0.00038904,7]
[322634797,1713143444297,-7127.63,0.00038904,7]
[322634798,1713143444305,-500.0,0.00038904,7]
[322634799,1713143444314,-1307.14,0.00038904,7]
[322634800,1713143444323,-627.47,0.00038904,7]
[322634801,1713143444332,-2213.19,0.00038904,7]
[322634802,1713143444341,-4423.39,0.00038904,7]
[322634803,1713143444350,-2540.62,0.00038904,7]
[322634804,1713143444359,-500.0,0.00038904,7]
[322634805,1713143444367,-560.65,0.00038904,7]
[322634806,1713143444376,-500.0,0.00038904,7]
[322634807,1713143444385,-1498.05,0.00038904,7]
[322634808,1713143444393,-500.0,0.00038904,7]
[322634809,1713143444402,-593.85,0.00038904,7]
[322634810,1713143444410,-500.0,0.00038904,7]
[322634811,1713143444419,-500.0,0.00038904,7]
[322634812,1713143444429,-3000.0,0.0003891,20]
[322634813,1713143444441,-3000.0,0.0003892,21]
[322634814,1713143444450,-205.0,0.0003893,17]
[322634815,1713143444458,-3000.0,0.0003893,21]
[322634816,1713143444467,-3000.0,0.0003894,21]
[322634817,1713143444477,-151.0,0.0003894,2]
[322634818,1713143444487,-151.0,0.0003894,2]
[322634819,1713143444496,-279.984188,0.0003894,2]
[322634820,1713143444505,-279.984188,0.0003894,2]
[322634821,1713143444514,-3000.0,0.0003895,21]
[322634822,1713143444523,-3000.0,0.0003896,21]
[322634823,1713143444532,-3000.0,0.0003897,21]
[322634824,1713143444540,-3000.0,0.0003898,21]
[322634825,1713143444549,-3000.0,0.0003899,21]
[322634826,1713143444558,-14650.78025786,0.00039,7]
[322634843,1713143470398,193.66769238,0.00029381,2]
[322634846,1713144350139,-225.96625416,0.00027386,2]
[322634847,1713144350159,-161.73972493,0.00027387,2]
[322634848,1713144350179,-188.324248,0.00027397,2]
[322634849,1713144350201,-188.324248,0.00033165,2]
[322634850,1713144350221,-360.0878579,0.00036804,2]
[322634851,1713144429155,-217.30865153,0.00036803,4]
[322634852,1713144429176,-233.81164457,0.00036804,2]
[322634853,1713144429197,-2000.0,0.00038256,2]
[322634854,1713144429218,-154.50519052,0.00038256,8]
[322634855,1713144429239,-953.07892508,0.00038354,4]
[322634856,1713144429262,-203.67668519,0.00038354,4]
[322634857,1713144429282,-422.99731209,0.00038354,4]
[322634858,1713144429302,-184.05387621,0.00038354,4]
[322634859,1713144429323,-426.15975485,0.00038354,4]
[322634860,1713144429343,-360.96525241,0.00038354,4]
[322634861,1713144429363,-294.49344832,0.00038354,4]
[322634862,1713144429382,-1637.92465628,0.00038355,4]
[322634863,1713144429402,-159.17306794,0.00038355,4]
[322634864,1713144429423,-399.57866817,0.00038355,4]
[322634865,1713144429443,-269.89016697,0.00038355,2]
[322634866,1713144548146,-186.602044,0.00027397,2]
[322634935,1713144638849,-395.93300165,0.00036255,2]
[322634937,1713144638858,-318.1276202,0.00037341,2]
[322634939,1713144638867,-219.98265552,0.00038156,2]
[322634941,1713144638878,-6254.62693686,0.00038255,30]
[322634943,1713144638887,-219.98265552,0.00038256,2]
[322634945,1713144638896,-192.20825711,0.00038354,4]
[322634947,1713144638908,-154.98448607,0.00038354,4]
[322634949,1713144638917,-500.0,0.00038355,2]
[322634951,1713144638926,-164.92,0.00038355,2]
[322634953,1713144638935,-164.92,0.00038355,2]
[322634954,1713144638944,-9108.28503609,0.00038356,5]
[322634955,1713144638953,-658.15,0.00038356,7]
[322634956,1713144638962,-500.0,0.00038356,7]
[322634957,1713144638971,-500.0,0.00038356,7]
[322634958,1713144638980,-522.02119539,0.00038356,7]
[322634959,1713144638988,-500.0,0.00038356,7]
[322634960,1713144638997,-500.0,0.00038356,7]
[322634961,1713144639007,-500.0,0.00038356,7]
[322634962,1713144639015,-500.0,0.00038356,7]
[322634963,1713144639025,-648.22858325,0.00038356,7]
[322634964,1713144639034,-500.0,0.00038356,7]
[322634965,1713144639043,-336.1609689,0.00038356,7]
[322634966,1713144639051,-500.0,0.00038356,7]
[322634967,1713144639061,-500.0,0.00038356,7]
[322634968,1713144639069,-500.0,0.00038356,7]
[322634969,1713144639078,-500.0,0.00038356,7]
[322634970,1713144639087,-503.24526326,0.00038356,7]
[322634971,1713144639096,-726.63,0.00038356,7]
[322634972,1713144639105,-232.14868867,0.00038356,2]
[322634973,1713144639114,-500.0,0.00038356,7]
[322634974,1713144639124,-500.0,0.00038356,7]
[322634975,1713144639133,-537.29,0.00038356,7]
[322634976,1713144639143,-500.0,0.00038356,7]
[322634977,1713144639152,-1541.9,0.00038356,7]
[322634978,1713144639164,-500.0,0.00038356,7]
[322634979,1713144639173,-200.71078306,0.00038356,7]
[322634980,1713144639182,-500.0,0.00038356,7]
[322634981,1713144639192,-500.0,0.00038356,7]
[322634982,1713144639202,-500.0,0.00038356,7]
[322634983,1713144639211,-500.0,0.00038356,7]
[322634984,1713144639220,-3109.42575445,0.00038356,4]
[322634985,1713144639229,-500.0,0.00038356,7]
[322634986,1713144639240,-500.0,0.00038356,7]
[322634987,1713144639249,-500.0,0.00038356,7]
[322634988,1713144639258,-500.0,0.00038356,7]
[322634989,1713144639267,-500.0,0.00038356,7]
[322634990,1713144639277,-500.0,0.00038356,7]
[322634991,1713144639287,-500.0,0.00038356,7]
[322634992,1713144639296,-159.46396657,0.00038356,7]
[322634993,1713144639306,-500.0,0.00038356,7]
[322634994,1713144639315,-500.0,0.00038356,7]
[322634995,1713144639325,-500.0,0.00038356,7]
[322634996,1713144639334,-578.23,0.00038356,7]
[322634997,1713144639343,-500.0,0.00038356,7]
[322634998,1713144639352,-500.0,0.00038356,7]
[322634999,1713144639361,-500.0,0.00038356,7]
[322635000,1713144639370,-500.0,0.00038356,7]
[322635001,1713144639380,-500.0,0.00038356,7]
[322635002,1713144639389,-500.0,0.00038356,7]
[322635003,1713144639399,-500.0,0.00038356,7]
[322635004,1713144639409,-500.0,0.00038356,7]
[322635005,1713144639418,-500.0,0.00038356,7]
[322635006,1713144639568,-500.0,0.00038356,7]
[322635007,1713144639577,-1635.1,0.00038356,7]
[322635008,1713144639587,-278.28463039,0.00038356,7]
[322635009,1713144639596,-500.0,0.00038356,7]
[322635010,1713144639605,-500.0,0.00038356,7]
[322635011,1713144639615,-500.0,0.00038356,7]
[322635012,1713144639624,-500.0,0.00038356,7]
[322635013,1713144639633,-500.0,0.00038356,7]
[322635014,1713144639643,-500.0,0.00038356,7]
[322635015,1713144639652,-500.0,0.00038356,7]
[322635016,1713144639663,-500.0,0.00038356,7]
[322635017,1713144639672,-500.0,0.00038356,7]
[322635018,1713144639681,-500.0,0.00038356,7]
[322635019,1713144639691,-500.0,0.00038356,7]
[322635020,1713144639700,-500.0,0.00038356,7]
[322635021,1713144639709,-500.0,0.00038356,7]
[322635022,1713144639719,-500.0,0.00038356,7]
[322635023,1713144639728,-500.0,0.00038356,7]
[322635024,1713144639737,-500.0,0.00038356,7]
[322635025,1713144639746,-500.0,0.00038356,7]
[322635026,1713144639755,-246.51846652,0.00038356,7]
[322635027,1713144639764,-181.97753445,0.00038356,7]
[322635028,1713144639773,-500.0,0.00038356,7]
[322635029,1713144639782,-500.0,0.00038356,7]
[322635030,1713144639791,-500.0,0.00038356,7]
[322635031,1713144639801,-500.0,0.00038356,7]
[322635032,1713144639810,-500.0,0.00038356,7]
[322635033,1713144639820,-500.0,0.00038356,7]
[322635034,1713144639830,-511.27,0.00038356,7]
[322635035,1713144639841,-500.0,0.00038356,7]
[322635036,1713144639850,-500.0,0.00038356,7]
[322635037,1713144639859,-500.0,0.00038356,7]
[322635038,1713144639869,-500.0,0.00038356,7]
[322635039,1713144639879,-500.0,0.00038356,7]
[322635040,1713144639888,-500.0,0.00038356,7]
[322635041,1713144639897,-500.0,0.00038356,7]
[322635042,1713144639911,-500.0,0.00038356,7]
[322635043,1713144639922,-1435.63,0.00038356,7]
[322635044,1713144639931,-500.0,0.00038356,7]
[322635045,1713144639940,-500.0,0.00038356,7]
[322635046,1713144639950,-500.0,0.00038356,7]
[322635047,1713144639959,-1252.67,0.00038356,7]
[322635048,1713144639968,-500.0,0.00038356,7]
[322635049,1713144639978,-500.0,0.00038356,7]
[322635050,1713144639987,-498.41868532,0.00038356,7]
[322635051,1713144639997,-500.0,0.00038356,7]
[322635052,1713144640008,-648.99,0.00038356,7]
[322635053,1713144640017,-500.0,0.00038356,7]
[322635054,1713144640027,-500.0,0.00038356,7]
[322635055,1713144640036,-500.0,0.00038356,7]
[322635056,1713144640046,-500.0,0.00038356,7]
[322635057,1713144640058,-500.0,0.00038356,7]
[322635058,1713144640068,-500.0,0.00038356,7]
[322635059,1713144640078,-500.0,0.00038356,7]
[322635060,1713144640089,-500.0,0.00038356,7]
[322635061,1713144640100,-569.11,0.00038356,7]
[322635062,1713144640110,-2146.14,0.00038356,7]
[322635063,1713144640121,-570.11,0.00038356,7]
[322635064,1713144640132,-6301.64,0.00038356,7]
[322635065,1713144640143,-175.79838242,0.00038356,7]
[322635066,1713144640154,-500.0,0.00038356,7]
[322635067,1713144640163,-500.0,0.00038356,7]
[322635068,1713144640172,-2843.17,0.00038356,7]
[322635069,1713144640183,-858.28,0.00038356,7]
[322635070,1713144640193,-500.0,0.00038356,7]
[322635071,1713144640202,-500.0,0.00038356,7]
[322635072,1713144640212,-743.07,0.00038356,7]
[322635074,1713144640221,-2131.94,0.00038356,7]
[322635075,1713144640230,-1100.83,0.00038356,7]
[322635076,1713144640239,-500.0,0.00038356,7]
[322635078,1713144640249,-1495.71,0.00038356,7]
[322635080,1713144640258,-655.24,0.00038356,7]
[322635082,1713144640267,-16241.19,0.00038356,7]
[322635084,1713144640276,-817.32,0.00038356,7]
[322635086,1713144640285,-500.0,0.00038356,7]
[322635088,1713144640295,-500.0,0.00038356,7]
[322635090,1713144640304,-500.0,0.00038356,7]
[322635092,1713144640313,-3633.99,0.00038356,7]
[322635094,1713144640322,-500.0,0.00038356,7]
[322635096,1713144640332,-569.17,0.00038356,7]
[322635098,1713144640342,-683.95,0.00038356,7]
[322635100,1713144640352,-500.0,0.00038356,7]
[322635102,1713144640361,-536.02,0.00038356,7]
[322635104,1713144640371,-185.44984037,0.00038356,7]
[322635106,1713144640380,-500.0,0.00038356,7]
[322635108,1713144640390,-508.55,0.00038356,7]
[322635110,1713144640399,-500.0,0.00038356,7]
[322635112,1713144640414,-500.0,0.00038356,7]
[322635114,1713144640423,-500.0,0.00038356,7]
[322635116,1713144640433,-500.0,0.00038356,7]
[322635118,1713144640443,-500.0,0.00038356,7]
[322635120,1713144640453,-4700.09,0.00038356,7]
[322635122,1713144640462,-500.0,0.00038356,7]
[322635124,1713144640472,-504.05,0.00038356,7]
[322635126,1713144640481,-500.0,0.00038356,7]
[322635128,1713144640492,-502.81429633,0.00038356,7]
[322635129,1713144640502,-500.0,0.00038356,7]
[322635131,1713144640511,-500.0,0.00038356,7]
[322635132,1713144640520,-584.74709342,0.00038356,7]
[322635133,1713144640529,-503.24110331,0.00038356,7]
[322635134,1713144640538,-500.0,0.00038356,7]
[322635135,1713144640547,-2491.41,0.00038356,7]
[322635136,1713144640557,-500.0,0.00038356,7]
[322635137,1713144640566,-552.31111648,0.00038356,7]
[322635138,1713144640575,-500.0,0.00038356,7]
[322635139,1713144640585,-1770.65,0.00038356,7]
[322635140,1713144640594,-43371.95,0.00038356,7]
[322635141,1713144640603,-500.0,0.00038356,7]
[322635142,1713144640612,-218.86964851,0.00038356,7]
[322635143,1713144640621,-930.76,0.00038356,7]
[322635144,1713144640630,-500.0,0.00038356,7]
[322635145,1713144640639,-500.0,0.00038356,7]
[322635146,1713144640649,-1031.91,0.00038356,7]
[322635147,1713144640661,-494.01116644,0.00038356,7]
[322635148,1713144640670,-500.0,0.00038356,7]
[322635149,1713144640679,-595.7,0.00038356,7]
[322635150,1713144640689,-500.0,0.00038356,7]
[322635151,1713144640698,-500.0,0.00038356,7]
[322635152,1713144640707,-500.0,0.00038356,7]
[322635153,1713144640717,-4188.92,0.00038356,7]
[322635154,1713144640727,-500.0,0.00038356,7]
[322635155,1713144640737,-500.0,0.00038356,7]
[322635156,1713144640746,-1991.66,0.00038356,7]
[322635157,1713144640757,-500.0,0.00038356,7]
[322635158,1713144640766,-2109.88,0.00038356,7]
[322635159,1713144640776,-2265.88,0.00038356,7]
[322635160,1713144640785,-500.0,0.00038356,7]
[322635161,1713144640794,-500.0,0.00038356,7]
[322635162,1713144640804,-500.0,0.00038356,7]
[322635163,1713144640814,-8900.19,0.00038356,7]
[322635164,1713144640823,-500.0,0.00038356,7]
[322635165,1713144640836,-500.0,0.00038356,7]
[322635166,1713144640845,-2434.76,0.00038356,7]
[322635167,1713144640855,-500.0,0.00038356,7]
[322635168,1713144640865,-500.0,0.00038356,7]
[322635169,1713144640874,-500.0,0.00038356,7]
[322635170,1713144640884,-500.0,0.00038356,7]
[322635171,1713144640894,-637.94,0.00038356,7]
[322635172,1713144640906,-500.0,0.00038356,7]
[322635173,1713144640916,-500.0,0.00038356,7]
[322635174,1713144640926,-500.0,0.00038356,7]
[322635175,1713144640935,-509.95726876,0.00038356,7]